[Event "94th Tradewise Hastings Congress"]
[Site "Hastings"]
[Date "2019.01.06"]
[Round "10"]
[White "Larsen, Andreas"]
[Black "Faulks, Nick"]
[Result "0-1"]
[ECO "A00"]
[WhiteElo "1933"]
[BlackElo "1917"]
[Annotator "NA"]
[PlyCount "76"]
[EventDate "2018.12.28"]
[EventType "swiss"]
[EventCountry "ENG"]
[SourceTitle "playchess.com"]
[Source "ChessBase"]
[SourceQuality "1"]
[TimeControl "40/6000+30:3000+30"]

1. g4 {[%emt 0:00:00]} d5 {[%emt 0:01:09]} 2. Bg2 {[%emt 0:00:00]} Bxg4 {[%emt 0:01:03]} 3. c4 {[%emt 0:00:00]} c6 {[%emt 0:09:41]} 4. cxd5 {[%emt 0:00:01]} cxd5 {[%emt 0:00:46]} 5. Qb3 {[%emt 0:00:08] [#]} Qc8 $11 {[%emt 0:00:38]} (5... Nf6 $1 $17 6. Nc3 Nc6 7. Nxd5 Rc8) 6. Nc3 {[%emt 0:00:21]} Nc6 {[%emt 0:04:26]} 7. Nxd5 {[%emt 0:05:56]} Nf6 {[%emt 0:05:12]} 8. d4 {[%emt 0:02:00]} Nxd4 {[%emt 0:07:43]} 9. Qa4+ {[%emt 0:27:50]} Nc6 {[%emt 0:00:47]} 10. Bd2 {[%emt 0:00:20]} Nxd5 {[%emt 0:05:01]} 11. Bxd5 {[%emt 0:01:55]} Bd7 {[%emt 0:00:53]} 12. Rc1 {[%emt 0:03:28]} e6 {[%emt 0:07:26]} 13. Bg2 {[%emt 0:05:46]} Qd8 {[%emt 0:05:25]} 14. Nf3 {[%emt 0:04:41]} Rc8 {[%emt 0:02:10]} 15. Bc3 {[%emt 0:03:36]} b5 {[%emt 0:10:53]} 16. Qxb5 {[%emt 0:06:34]} Nb4 {[%emt 0:00:56]} 17. Qh5 {[%emt 0:02:54]} g6 {[%emt 0:04:02]} 18. Qe5 {[%emt 0:04:35]} f6 {[%emt 0:01:17]} 19. Qd4 {[%emt 0:08:45]} Nxa2 {[%emt 0:01:10]} 20. Rd1 {[%emt 0:01:47]} Nxc3 {[%emt 0:02:37]} 21. bxc3 {[%emt 0:00:17]} Bc5 {[%emt 0:02:41]} 22. Qe4 {[%emt 0:03:09]} Qe7 {[%emt 0:06:30]} 23. Qb7 {[%emt 0:03:20]} e5 {[%emt 0:02:27]} 24. O-O {[%emt 0:02:44]} Be6 {[%emt 0:01:57]} 25. Qb5+ {[%emt 0:03:04]} Kf7 {[%emt 0:00:19]} 26. Rd2 {[%emt 0:03:53]} Rhd8 {[%emt 0:05:26]} 27. Rfd1 {[%emt 0:01:31]} Rxd2 {[%emt 0:00:39]} 28. Rxd2 {[%emt 0:01:00]} Bb6 {[%emt 0:01:10]} 29. h4 {[%emt 0:01:47]} Rxc3 {[%emt 0:01:10]} 30. Rd1 {[%emt 0:06:34]} Qc5 {[%emt 0:02:47]} 31. Rd7+ {[%emt 0:02:02]} Bxd7 {[%emt 0:00:58]} 32. Qxd7+ {[%emt 0:00:08]} Qe7 {[%emt 0:00:30]} 33. Qd5+ {[%emt 0:02:54]} Qe6 {[%emt 0:01:44]} 34. Qd2 {[%emt 0:00:07]} Qc8 {[%emt 0:01:56]} 35. Qh6 {[%emt 0:01:13]} Kg8 {[%emt 0:01:26]} 36. Ng5 {[%emt 0:00:32]} fxg5 {[%emt 0:01:36]} 37. Bd5+ {[%emt 0:00:29]} Kh8 {[%emt 0:00:08]} 38. Qxg5 {[%emt 0:00:09]} Bxf2+ {[%emt 0:03:32]} 0-1

[Event "94th Tradewise Hastings Congress"]
[Site "Hastings"]
[Date "2019.01.06"]
[Round "10"]
[White "Fryer, David W"]
[Black "Song, Jinwoo"]
[Result "1-0"]
[ECO "A49"]
[WhiteElo "1932"]
[BlackElo "1907"]
[Annotator "NA"]
[PlyCount "53"]
[EventDate "2018.12.28"]
[EventType "swiss"]
[EventCountry "ENG"]
[SourceTitle "playchess.com"]
[Source "ChessBase"]
[SourceQuality "1"]
[TimeControl "40/6000+30:3000+30"]

1. Nf3 {[%emt 0:00:00]} Nf6 {[%emt 0:00:00]} 2. g3 {[%emt 0:00:00]} g6 {[%emt 0:01:56]} 3. Bg2 {[%emt 0:00:00]} Bg7 {[%emt 0:00:04]} 4. O-O {[%emt 0:00:00]} O-O {[%emt 0:00:03]} 5. d3 {[%emt 0:00:11]} d5 {[%emt 0:01:23]} 6. Nbd2 {[%emt 0:01:30]} Nbd7 {[%emt 0:00:17]} 7. e4 {[%emt 0:02:17]} dxe4 {[%emt 0:00:24]} 8. dxe4 {[%emt 0:00:12]} e5 {[%emt 0:00:36]} 9. Re1 {[%emt 0:00:34]} Qe7 {[%emt 0:16:58]} 10. h3 {[%emt 0:02:49]} Rd8 {[%emt 0:02:41]} 11. Qe2 {[%emt 0:01:27]} Nc5 {[%emt 0:06:32]} 12. a4 {[%emt 0:08:03]} Bd7 {[%emt 0:00:47]} 13. b3 {[%emt 0:02:54]} Bc6 {[%emt 0:02:33]} 14. Ba3 {[%emt 0:02:28]} a5 {[%emt 0:17:00]} 15. Nh2 {[%emt 0:11:54]} Nfd7 {[%emt 0:04:26]} 16. Qe3 {[%emt 0:04:53]} b6 {[%emt 0:07:27]} 17. Rad1 {[%emt 0:01:54]} Qe6 {[%emt 0:00:42]} 18. g4 {[%emt 0:07:38]} Na6 {[%emt 0:02:46]} 19. g5 {[%emt 0:04:19]} Nb4 {[%emt 0:00:48]} 20. Rc1 {[%emt 0:08:33]} Nc5 {[%emt 0:02:01]} 21. Ng4 {[%emt 0:01:38]} Rd7 {[%emt 0:13:48]} 22. f3 {[%emt 0:13:15]} Rad8 {[%emt 0:11:44]} 23. Nc4 {[%emt 0:01:16]} Bxa4 {[%emt 0:03:06]} 24. Nxa5 {[%emt 0:15:48]} Nxb3 {[%emt 0:09:43]} 25. Nxb3 {[%emt 0:00:00]} Bxb3 {[%emt 0:00:34]} 26. Bxb4 {[%emt 0:00:00]} Qc4 {[%emt 0:01:08]} 27. Qxb3 {[%emt 0:00:00]} 1-0

[Event "94th Tradewise Hastings Congress"]
[Site "Hastings"]
[Date "2019.01.06"]
[Round "10"]
[White "Fowler, David"]
[Black "Rayner, Francis"]
[Result "1/2-1/2"]
[ECO "E42"]
[WhiteElo "1929"]
[BlackElo "2048"]
[Annotator "NA"]
[PlyCount "22"]
[EventDate "2018.12.28"]
[EventType "swiss"]
[EventCountry "ENG"]
[SourceTitle "playchess.com"]
[Source "ChessBase"]
[SourceQuality "1"]
[TimeControl "40/6000+30:3000+30"]

1. d4 {[%emt 0:00:00]} Nf6 {[%emt 0:00:00]} 2. c4 {[%emt 0:00:00]} e6 {[%emt 0:02:45]} 3. Nc3 {[%emt 0:00:00]} Bb4 {[%emt 0:00:49]} 4. e3 {[%emt 0:00:07]} c5 {[%emt 0:04:16]} 5. Nge2 {[%emt 0:01:26]} cxd4 {[%emt 0:05:48]} 6. exd4 {[%emt 0:00:06]} O-O {[%emt 0:00:15]} 7. a3 {[%emt 0:02:27]} Be7 {[%emt 0:00:09]} 8. d5 {[%emt 0:06:08]} exd5 {[%emt 0:00:25]} 9. cxd5 {[%emt 0:02:30]} Bc5 {[%emt 0:00:11]} 10. b4 {[%emt 0:02:53]} Bb6 {[%emt 0:04:40]} 11. Na4 {[%emt 0:05:16]} d6 {[%emt 0:04:41]} 1/2-1/2

[Event "94th Tradewise Hastings Congress"]
[Site "Hastings"]
[Date "2019.01.06"]
[Round "10"]
[White "Salmons, Calum"]
[Black "Royal, Shreyas"]
[Result "1/2-1/2"]
[ECO "B43"]
[WhiteElo "1905"]
[BlackElo "1930"]
[Annotator "NA"]
[PlyCount "50"]
[EventDate "2018.12.28"]
[EventType "swiss"]
[EventCountry "ENG"]
[SourceTitle "playchess.com"]
[Source "ChessBase"]
[SourceQuality "1"]
[TimeControl "40/6000+30:3000+30"]

1. e4 {[%emt 0:00:00]} c5 {[%emt 0:00:00]} 2. Nf3 {[%emt 0:00:00]} e6 {[%emt 0:00:20]} 3. d4 {[%emt 0:00:12]} cxd4 {[%emt 0:01:01]} 4. Nxd4 {[%emt 0:00:09]} a6 {[%emt 0:00:52]} 5. Nc3 {[%emt 0:02:26]} b5 {[%emt 0:00:19]} 6. a3 {[%emt 0:01:41]} Qc7 {[%emt 0:03:06]} 7. Bd3 {[%emt 0:05:32]} Bb7 {[%emt 0:02:16]} 8. O-O {[%emt 0:01:14]} Nf6 {[%emt 0:01:38]} 9. Kh1 {[%emt 0:06:08]} d6 {[%emt 0:01:09]} 10. f4 {[%emt 0:02:19]} Nbd7 {[%emt 0:00:57]} 11. f5 {[%emt 0:07:50]} e5 {[%emt 0:02:33]} 12. Nb3 {[%emt 0:05:59]} h5 {[%emt 0:00:27]} 13. Rf3 {[%emt 0:04:28]} Rd8 {[%emt 0:01:52]} 14. Bg5 {[%emt 0:07:32]} Be7 {[%emt 0:00:50]} 15. Qe1 {[%emt 0:02:33]} Nb6 {[%emt 0:03:46]} 16. Rc1 {[%emt 0:11:44]} Rd7 {[%emt 0:10:09]} 17. Nd2 {[%emt 0:08:59]} Qb8 {[%emt 0:11:04]} 18. Qe2 {[%emt 0:07:41]} Qd8 {[%emt 0:07:38]} 19. Rh3 {[%emt 0:11:49]} Nxe4 {[%emt 0:02:17]} 20. Ncxe4 {[%emt 0:00:29]} Bxg5 {[%emt 0:01:23]} 21. Rxh5 {[%emt 0:01:33]} Rxh5 {[%emt 0:02:19]} 22. Qxh5 {[%emt 0:00:07]} Bxe4 {[%emt 0:00:08]} 23. Nxe4 {[%emt 0:00:10]} Bxc1 {[%emt 0:00:29]} 24. Qh8+ {[%emt 0:00:15]} Ke7 {[%emt 0:00:09]} 25. f6+ {[%emt 0:00:25]} gxf6 {[%emt 0:01:38]} 1/2-1/2

[Event "94th Tradewise Hastings Congress"]
[Site "Hastings"]
[Date "2019.01.06"]
[Round "10"]
[White "Boswell, Jacob Connor"]
[Black "Groffen, Hans"]
[Result "1/2-1/2"]
[ECO "C10"]
[WhiteElo "1858"]
[BlackElo "2120"]
[Annotator "NA"]
[PlyCount "34"]
[EventDate "2018.12.28"]
[EventType "swiss"]
[EventCountry "ENG"]
[SourceTitle "playchess.com"]
[Source "ChessBase"]
[SourceQuality "1"]
[TimeControl "40/6000+30:3000+30"]

1. e4 {[%emt 0:00:00]} e6 {[%emt 0:00:00]} 2. d4 {[%emt 0:00:00]} d5 {[%emt 0:00:00]} 3. Nd2 {[%emt 0:00:15]} dxe4 {[%emt 0:00:20]} 4. Nxe4 {[%emt 0:00:07]} Nd7 {[%emt 0:00:04]} 5. Nf3 {[%emt 0:00:24]} Ngf6 {[%emt 0:00:06]} 6. Nxf6+ {[%emt 0:00:16]} Nxf6 {[%emt 0:00:08]} 7. Bd3 {[%emt 0:00:21]} c5 {[%emt 0:00:17]} 8. dxc5 {[%emt 0:00:16]} Bxc5 {[%emt 0:00:07]} 9. Qe2 {[%emt 0:00:26]} O-O {[%emt 0:01:24]} 10. O-O {[%emt 0:00:47]} b6 {[%emt 0:01:16]} 11. Bg5 {[%emt 0:06:46]} Bb7 {[%emt 0:01:03]} 12. Rad1 {[%emt 0:03:48]} Qc7 {[%emt 0:00:13]} 13. Bxf6 {[%emt 0:14:21]} gxf6 {[%emt 0:00:08]} 14. Be4 {[%emt 0:02:22]} Rfd8 {[%emt 0:01:38]} 15. c3 {[%emt 0:01:12]} Bxe4 {[%emt 0:03:33]} 16. Qxe4 {[%emt 0:00:12]} Rxd1 {[%emt 0:02:24]} 17. Rxd1 {[%emt 0:04:18]} Rd8 {[%emt 0:00:39]} 1/2-1/2

[Event "94th Tradewise Hastings Congress"]
[Site "Hastings"]
[Date "2019.01.06"]
[Round "10"]
[White "Wilson, Matthew R"]
[Black "Butt, Laurence"]
[Result "1-0"]
[ECO "C01"]
[WhiteElo "1807"]
[BlackElo "1635"]
[Annotator "NA"]
[PlyCount "89"]
[EventDate "2018.12.28"]
[EventType "swiss"]
[EventCountry "ENG"]
[SourceTitle "playchess.com"]
[Source "ChessBase"]
[SourceQuality "1"]
[TimeControl "40/6000+30:3000+30"]

1. e4 {[%emt 0:00:00]} e6 {[%emt 0:07:37]} 2. d4 {[%emt 0:00:00]} d5 {[%emt 0:00:14]} 3. Nc3 {[%emt 0:00:00]} Bb4 {[%emt 0:00:11]} 4. exd5 {[%emt 0:00:00]} exd5 {[%emt 0:00:35]} 5. Bd3 {[%emt 0:00:00]} Nc6 {[%emt 0:00:39]} 6. a3 {[%emt 0:00:00]} Be7 {[%emt 0:02:27]} 7. Nge2 {[%emt 0:00:00]} Nf6 {[%emt 0:01:11]} 8. O-O {[%emt 0:00:23]} Bg4 {[%emt 0:00:48]} 9. Be3 {[%emt 0:08:10]} Qd7 {[%emt 0:00:25]} 10. Qd2 {[%emt 0:07:10]} O-O {[%emt 0:01:14]} 11. Ng3 {[%emt 0:00:16]} Nh5 {[%emt 0:04:52]} 12. Nce2 {[%emt 0:02:17]} Bd6 {[%emt 0:12:50]} 13. c3 {[%emt 0:22:32]} Na5 {[%emt 0:07:41]} 14. Qc2 {[%emt 0:05:07]} f5 {[%emt 0:08:02]} 15. Nxh5 {[%emt 0:04:09]} Bxh5 {[%emt 0:01:28]} 16. Nf4 {[%emt 0:06:09]} Bxf4 {[%emt 0:00:19]} 17. Bxf4 {[%emt 0:00:09]} h6 {[%emt 0:01:56]} 18. Rfe1 {[%emt 0:06:22]} g5 {[%emt 0:01:02]} 19. Be5 {[%emt 0:00:32]} Nc6 {[%emt 0:01:52]} 20. f4 {[%emt 0:08:15]} Rae8 {[%emt 0:00:48]} 21. Qb3 {[%emt 0:08:22]} Nxe5 {[%emt 0:00:47]} 22. Rxe5 {[%emt 0:03:16]} Rxe5 {[%emt 0:00:10]} 23. fxe5 {[%emt 0:00:07]} c6 {[%emt 0:01:58]} 24. Qc2 {[%emt 0:01:05]} f4 {[%emt 0:00:50]} 25. Bg6 {[%emt 0:03:19]} Bg4 {[%emt 0:00:33]} 26. h3 {[%emt 0:01:21]} Be6 {[%emt 0:00:22]} 27. Bh5 {[%emt 0:00:39]} Bf5 {[%emt 0:03:00]} 28. Qe2 {[%emt 0:03:15]} Qe6 {[%emt 0:01:33]} 29. Bf3 {[%emt 0:05:49]} b6 {[%emt 0:03:35]} 30. b4 {[%emt 0:01:00]} Rf7 {[%emt 0:00:00]} 31. a4 {[%emt 0:02:08]} Rc7 {[%emt 0:00:05]} 32. Rd1 {[%emt 0:03:41]} Rg7 {[%emt 0:03:23]} 33. b5 {[%emt 0:01:31]} cxb5 {[%emt 0:01:08]} 34. axb5 {[%emt 0:02:43]} Rc7 {[%emt 0:00:16]} 35. Qa2 {[%emt 0:00:15]} Rd7 {[%emt 0:00:50]} 36. Re1 {[%emt 0:02:35]} Kg7 {[%emt 0:00:18]} 37. c4 {[%emt 0:00:27]} dxc4 {[%emt 0:02:02]} 38. d5 {[%emt 0:00:10]} Qe7 {[%emt 0:00:55]} 39. Qxc4 {[%emt 0:00:43]} Rc7 {[%emt 0:03:48]} 40. Qd4 {[%emt 0:00:59]} Qd8 {[%emt 0:18:08]} 41. d6 {[%emt 0:13:43]} Be6 {[%emt 0:01:13]} 42. Bd5 {[%emt 0:02:55]} Rc2 {[%emt 0:07:54]} 43. Bxe6 {[%emt 0:03:11]} f3 {[%emt 0:00:30]} 44. gxf3 {[%emt 0:01:38]} Qa8 {[%emt 0:00:48]} 45. Bd5 {[%emt 0:01:38]} 1-0

[Event "94th Tradewise Hastings Congress"]
[Site "Hastings"]
[Date "2019.01.06"]
[Round "10"]
[White "Gu, In Jung"]
[Black "Graham, David B"]
[Result "0-1"]
[ECO "D93"]
[WhiteElo "1794"]
[BlackElo "2208"]
[Annotator "NA"]
[PlyCount "98"]
[EventDate "2018.12.28"]
[EventType "swiss"]
[EventCountry "ENG"]
[SourceTitle "playchess.com"]
[Source "ChessBase"]
[SourceQuality "1"]
[TimeControl "40/6000+30:3000+30"]

1. d4 {[%emt 0:01:23]} Nf6 {[%emt 0:00:00]} 2. Nf3 {[%emt 0:00:08]} g6 {[%emt 0:00:00]} 3. c4 {[%emt 0:00:51]} Bg7 {[%emt 0:00:00]} 4. Nc3 {[%emt 0:00:08]} d5 {[%emt 0:00:00]} 5. Bf4 {[%emt 0:02:25]} O-O {[%emt 0:04:09]} 6. e3 {[%emt 0:01:00]} c6 {[%emt 0:01:51]} 7. Bd3 {[%emt 0:03:39]} Nbd7 {[%emt 0:02:23]} 8. O-O {[%emt 0:00:16]} dxc4 {[%emt 0:03:18]} 9. Bxc4 {[%emt 0:00:23] LiveBook: 16 Games} Nb6 {[%emt 0:00:46]} 10. Bb3 {[%emt 0:01:15]} Nbd5 {[%emt 0:01:10]} 11. Be5 {[%emt 0:01:38]} Bg4 {[%emt 0:10:19]} 12. h3 {[%emt 0:01:36]} Bxf3 {[%emt 0:00:05]} 13. Qxf3 {[%emt 0:00:05]} Qd7 $16 {[%emt 0:03:40]} 14. Rac1 {[%emt 0:02:08]} Rac8 {[%emt 0:02:49]} 15. Rfd1 {[%emt 0:17:47]} Nxc3 {[%emt 0:16:33]} 16. Rxc3 {[%emt 0:00:14]} Qf5 {[%emt 0:00:20]} 17. Qxf5 {[%emt 0:08:52]} gxf5 {[%emt 0:00:06]} 18. Bc2 {[%emt 0:04:26]} f4 {[%emt 0:14:36]} 19. e4 {[%emt 0:16:13]} Nh5 {[%emt 0:03:11]} 20. Bxg7 {[%emt 0:00:18]} Nxg7 {[%emt 0:02:33]} 21. e5 {[%emt 0:04:32]} Ne6 {[%emt 0:02:09]} 22. Bf5 {[%emt 0:02:58]} Rcd8 {[%emt 0:03:11]} 23. Bxe6 {[%emt 0:04:01]} fxe6 {[%emt 0:00:04]} 24. Kf1 {[%emt 0:01:03]} Rd5 {[%emt 0:15:29]} 25. Ke2 {[%emt 0:01:10]} Rfd8 {[%emt 0:00:10]} 26. Rc4 {[%emt 0:02:25]} Kf7 {[%emt 0:02:08]} 27. Kf3 {[%emt 0:06:03]} Rxe5 {[%emt 0:06:04]} 28. dxe5 {[%emt 0:11:57]} Rxd1 {[%emt 0:00:05]} 29. Ke2 {[%emt 0:00:04]} Rd5 {[%emt 0:00:41]} 30. Rxf4+ {[%emt 0:00:05]} Kg6 {[%emt 0:03:14]} 31. Re4 {[%emt 0:00:04]} Kf5 {[%emt 0:02:42]} 32. Ke3 {[%emt 0:00:47]} Rxe5 {[%emt 0:01:34]} 33. g4+ {[%emt 0:00:07]} Kf6 {[%emt 0:00:12]} 34. Rxe5 {[%emt 0:00:25]} Kxe5 {[%emt 0:00:06]} 35. f4+ {[%emt 0:00:04]} Kf6 {[%emt 0:02:02]} 36. Ke4 {[%emt 0:01:44]} c5 {[%emt 0:04:57]} 37. h4 {[%emt 0:01:20]} b5 {[%emt 0:00:08]} 38. b3 {[%emt 0:07:12]} a6 {[%emt 0:02:42]} 39. a3 {[%emt 0:01:45]} c4 {[%emt 0:02:36]} 40. bxc4 {[%emt 0:03:53]} bxc4 {[%emt 0:00:04]} 41. a4 {[%emt 0:05:07]} c3 {[%emt 0:13:14]} 42. Kd3 {[%emt 0:06:46]} e5 {[%emt 0:00:10]} 43. f5 {[%emt 0:03:25]} e4+ {[%emt 0:05:04]} 44. Kxc3 {[%emt 0:07:41]} Ke5 {[%emt 0:00:04]} 45. a5 {[%emt 0:03:20]} Kf4 {[%emt 0:00:14]} 46. Kd4 {[%emt 0:00:07]} e3 {[%emt 0:01:07]} 47. Kd3 {[%emt 0:00:29]} Kf3 {[%emt 0:00:41]} 48. g5 {[%emt 0:00:10]} e2 {[%emt 0:00:05]} 49. f6 {[%emt 0:01:30]} exf6 {[%emt 0:00:07]} 0-1